fUST/lending_fUST_20240904
["ID","MTS","AMOUNT","RATE_DAILY","PERIOD"]
[337158715,1725459963978,-850.77,0.00047,30]
[337158716,1725459964018,-1000.0,0.00047,30]
[337158717,1725459964057,-500.0,0.000472,120]
[337158718,1725459964096,-1000.0,0.00047284,30]
[337158719,1725459964139,-1000.0,0.00047382,30]
[337158720,1725459964191,-151.0,0.00047479,120]
[337158721,1725459964235,-376.266847,0.00047489,120]
[337158722,1725459964278,-190.73416061,0.000475,120]
[337158723,1725459964322,-700.0,0.00047637,30]
[337158724,1725459964366,-928.85,0.000477,30]
[337158725,1725459964408,-700.0,0.00047807,30]
[337158726,1725459964451,-1000.0,0.00047926,30]
[337158727,1725459964496,-200.0,0.00048,73]
[337158728,1725459964544,-200.0,0.00048,73]
[337158729,1725459964589,-200.0,0.00048,73]
[337158730,1725459964634,-200.0,0.00048,73]
[337158731,1725459964689,-1700.0,0.00048131,30]
[337158732,1725459964731,-500.0,0.00048151,30]
[337158733,1725459964775,-500.0,0.00048303,120]
[337158734,1725459964817,-500.0,0.00048303,120]
[337158735,1725459964859,-500.0,0.00048303,120]
[337158736,1725459964901,-500.0,0.00048303,120]
[337158737,1725459964942,-500.0,0.00048303,120]
[337158738,1725459964986,-500.0,0.00048303,120]
[337158739,1725459965029,-500.0,0.00048303,120]
[337158740,1725459965069,-500.0,0.00048303,120]
[337158741,1725459965108,-500.0,0.00048303,120]
[337158742,1725459965153,-500.0,0.00048303,120]
[337158743,1725459965193,-500.0,0.00048303,120]
[337158744,1725459965233,-500.0,0.00048303,120]
[337158745,1725459965271,-500.0,0.00048303,120]
[337158746,1725459965314,-500.0,0.00048303,120]
[337158747,1725459965354,-500.0,0.00048303,120]
[337158748,1725459965396,-510.7,0.00048303,120]
[337158749,1725459965436,-500.0,0.00048303,120]
[337158750,1725459965476,-500.0,0.00048303,120]
[337158751,1725459965516,-500.0,0.00048303,120]
[337158752,1725459965557,-500.0,0.00048303,120]
[337158753,1725459965598,-500.0,0.00048303,120]
[337158754,1725459965641,-500.0,0.00048303,120]
[337158755,1725459965683,-500.0,0.00048303,120]
[337158756,1725459965723,-500.0,0.00048303,120]
[337158757,1725459965769,-500.0,0.00048303,120]
[337158758,1725459965810,-500.0,0.00048303,120]
[337158759,1725459965851,-500.0,0.00048303,120]
[337158760,1725459965899,-500.0,0.00048303,120]
[337158761,1725459965942,-500.0,0.00048303,120]
[337158762,1725459965985,-500.0,0.00048303,120]
[337158763,1725459966027,-500.0,0.00048303,120]
[337158764,1725459966067,-500.0,0.00048303,120]
[337158765,1725459966108,-500.0,0.00048303,120]
[337158766,1725459966151,-500.0,0.00048303,120]
[337158767,1725459966190,-500.0,0.00048303,120]
[337158768,1725459966231,-500.0,0.00048303,120]
[337158769,1725459966273,-500.0,0.00048303,120]
[337158770,1725459966315,-500.0,0.00048303,120]
[337158771,1725459966355,-500.0,0.00048303,120]
[337158772,1725459966397,-500.0,0.00048303,120]
[337158773,1725459966439,-500.0,0.00048303,120]
[337158774,1725459966480,-500.0,0.00048303,120]
[337158775,1725459966520,-577.18,0.00048303,120]
[337158776,1725459966559,-500.0,0.00048303,120]
[337158777,1725459966597,-500.0,0.00048303,120]
[337158778,1725459966671,-500.252288,0.00048306,120]
[337158779,1725459966710,-1700.0,0.00048408,30]
[337158780,1725459966748,-20274.83,0.000486,30]
[337158781,1725459966789,-790.29007416,0.00048694,28]
[337158782,1725459966828,-1000.0,0.00048999,120]
[337158783,1725459966871,-200.0,0.00049,77]
[337158784,1725459966910,-200.0,0.00049,77]
[337158785,1725459966950,-200.0,0.00049,77]
[337158786,1725459966990,-873.62308939,0.00049,120]
[337158787,1725459967029,-206.0839135,0.00049,10]
[337158788,1725459967071,-200.0,0.00049,77]
[337158789,1725459967108,-5000.0,0.00049,30]
[337158790,1725459967150,-2775.0,0.00049,30]
[337158791,1725459967196,-1000.0,0.00049,60]
[337158792,1725459967234,-151.0,0.00049068,120]
[337158793,1725459967273,-151.0,0.00049178,120]
[337158794,1725459967311,-1700.0,0.00049256,30]
[337158795,1725459967349,-479.16,0.00049303,90]
[337158796,1725459967388,-500.0,0.00049315,30]
[337158797,1725459967428,-500.0,0.00049315,120]
[337158798,1725459967467,-500.0,0.00049315,120]
[337158799,1725459967505,-500.0,0.00049315,120]
[337158800,1725459967543,-500.0,0.00049315,120]
[337158801,1725459967581,-500.0,0.00049315,120]
[337158802,1725459967618,-500.0,0.00049315,120]
[337158803,1725459967658,-500.0,0.00049315,120]
[337158804,1725459967702,-500.0,0.00049315,120]
[337158805,1725459967740,-500.0,0.00049315,120]
[337158806,1725459967780,-500.0,0.00049315,120]
[337158807,1725459967818,-500.0,0.00049315,120]
[337158808,1725459967857,-500.0,0.00049315,120]
[337158809,1725459967903,-500.0,0.00049315,120]
[337158810,1725459967941,-500.0,0.00049315,120]
[337158811,1725459967981,-500.0,0.00049315,120]
[337158812,1725459968019,-500.0,0.00049315,120]
[337158813,1725459968058,-500.0,0.00049315,120]
[337158814,1725459968101,-500.0,0.00049315,120]
[337158815,1725459968142,-500.0,0.00049315,120]
[337158816,1725459968185,-493.1557134,0.00049315,120]
[337158817,1725459968226,-500.0,0.00049315,31]
[337158818,1725459968263,-260.59380375,0.00049315,31]
[337158819,1725459968301,-500.0,0.00049315,31]
[337158820,1725459968339,-500.0,0.00049315,31]
[337158821,1725459968383,-500.0,0.00049315,31]
[337158822,1725459968424,-500.0,0.00049315,31]
[337158823,1725459968466,-1700.0,0.00049329,30]
[337158824,1725459968507,-1700.0,0.00049419,30]
[337158825,1725459968546,-1700.0,0.00049644,30]
[337158826,1725459968584,-1700.0,0.00049886,30]
[337158827,1725459968622,-494.42341571,0.0004999,120]
[337158828,1725459968662,-5000.0,0.0005,60]
[337158829,1725459968701,-2000.0,0.0005,120]
[337158830,1725459968738,-159.0956668,0.0005,120]
[337158831,1725459968774,-1000.0,0.0005,120]
[337158832,1725459968812,-8666.62584885,0.0005,120]
[337158833,1725459968850,-1000.0,0.0005,120]
[337158834,1725459968889,-8187.22801933,0.0005,30]
[337158836,1725459975457,-200.0,0.00034061,30]
[337158837,1725459975499,-200.0,0.00034061,30]
[337158838,1725459975538,-200.0,0.00034061,30]
[337158839,1725459975576,-200.0,0.00034061,30]
[337158840,1725459975614,-200.0,0.00034061,30]
[337158841,1725459975657,-200.0,0.00034061,30]
[337158842,1725459975694,-200.0,0.00034061,30]
[337158843,1725459975732,-200.0,0.00034061,30]
[337158844,1725459975772,-200.0,0.00034061,30]
[337158845,1725459975810,-200.0,0.00034061,30]
[337158846,1725459975847,-250.7,0.00034061,30]
[337158847,1725459975885,-200.0,0.00034061,30]
[337158848,1725459975924,-200.0,0.00034061,30]
[337158849,1725459975963,-200.0,0.00034061,30]
[337158850,1725459976000,-200.0,0.00034061,30]
[337158851,1725459976037,-200.0,0.00034061,30]
[337158852,1725459976075,-200.0,0.00034061,30]
[337158853,1725459976112,-250.7,0.00034061,30]
[337158854,1725459976148,-200.0,0.00034061,30]
[337158855,1725459976187,-200.0,0.00034061,30]
[337158856,1725459976224,-200.0,0.00034061,30]
[337158857,1725459976262,-200.0,0.00034061,30]
[337158858,1725459976303,-200.0,0.00034061,30]
[337158859,1725459976342,-200.0,0.00034061,30]
[337158860,1725459976381,-250.7,0.00034061,30]
[337158861,1725459976418,-250.699999,0.00034061,30]
[337158862,1725459976459,-200.0,0.00034061,30]
[337158863,1725459976498,-2500.0,0.00034061,120]
[337158864,1725459976537,-200.0,0.00034061,30]
[337158865,1725459976661,-191432.44956059,0.00034061,5]
[337158866,1725459976703,-12800.43186414,0.00034061,4]
[337158867,1725459976744,-229.0,0.00034061,5]
[337158868,1725460010494,-1192.80576251,0.00027233,15]
[337158869,1725460010589,-306.73264486,0.00049315,31]
[337158870,1725460010628,-1519.67562967,0.0005,30]
[337158871,1725460010667,-65989.98,0.0005,30]
[337158872,1725460010707,-13552.03303631,0.0005,120]
[337158873,1725460010747,-193.91384696,0.0005,30]
[337158874,1725460010790,-212.93170185,0.0005,20]
[337158875,1725460010831,-521.46077512,0.0005,10]
[337158876,1725460010873,-518.30719389,0.0005,120]
[337158877,1725460010914,-500.0,0.0005,120]
[337158878,1725460010957,-42198.31,0.0005,30]
[337158879,1725460010997,-500.0,0.000503,60]
[337158880,1725460011036,-3326.73249467,0.00050326,60]
[337158881,1725460011074,-1000.0,0.000505,120]
[337158882,1725460011115,-500.0,0.00050589,60]
[337158883,1725460011418,-1000.0,0.000506,60]
[337158884,1725460011469,-151.0,0.00050658,120]
[337158885,1725460011509,-1000.0,0.000509,60]
[337158886,1725460011551,-1000.0,0.00050936,60]
[337158887,1725460011590,-850.77,0.00051,30]
[337158888,1725460011630,-3000.0,0.00051,85]
[337158889,1725460011671,-3000.0,0.0005101,85]
[337158890,1725460011712,-3000.0,0.0005102,85]
[337158891,1725460011751,-3000.0,0.0005103,85]
[337158892,1725460011792,-3000.0,0.0005104,85]
[337158893,1725460011833,-3000.0,0.0005105,85]
[337158894,1725460011873,-3000.0,0.0005106,85]
[337158895,1725460011912,-3000.0,0.0005107,85]
[337158896,1725460011951,-5167.480936,0.0005108,85]
[337158897,1725460011989,-900.0,0.00051136,60]
[337158898,1725460012030,-500.0,0.00051227,60]
[337158899,1725460012068,-656.85435351,0.00051269,60]
[337158900,1725460012105,-308.47,0.000513,30]
[337158901,1725460012142,-1000.0,0.00051498,60]
[337158902,1725460012183,-1000.0,0.00051506,60]
[337158903,1725460012229,-900.0,0.00051514,60]
[337158904,1725460012267,-700.0,0.00051685,60]
[337158905,1725460012305,-500.0,0.00051781,30]
[337158906,1725460012345,-151.0,0.00051918,120]
[337158907,1725460012383,-300.0,0.00052,120]
[337158908,1725460012423,-3000.0,0.00052,120]
[337158909,1725460012474,-700.0,0.00052014,60]
[337158910,1725460012515,-151.0,0.00052247,120]
[337158911,1725460012554,-523.0,0.00052285,120]
[337158912,1725460012592,-3241.16,0.00052356,120]
[337158913,1725460012638,-3241.16,0.00052356,120]
[337158914,1725460012675,-3241.16,0.00052356,120]
[337158915,1725460012714,-3241.16,0.00052356,120]
[337158916,1725460012751,-3241.16,0.00052356,120]
[337158917,1725460012790,-3241.16,0.00052356,120]
[337158918,1725460012828,-3241.16,0.00052356,120]
[337158919,1725460012868,-3241.16,0.00052356,120]
[337158920,1725460012907,-3241.16,0.00052356,120]
[337158921,1725460012944,-3241.16,0.00052356,120]
[337158922,1725460012982,-3241.16,0.00052356,120]
[337158923,1725460013018,-3241.16,0.00052356,120]
[337158924,1725460013056,-3241.16,0.00052356,120]
[337158925,1725460013093,-3241.16,0.00052356,120]
[337158926,1725460013129,-3241.16,0.00052356,120]
[337158927,1725460013167,-3241.16,0.00052356,120]
[337158928,1725460013207,-3241.16,0.00052356,120]
[337158929,1725460013246,-3241.16,0.00052356,120]
[337158930,1725460013287,-3241.16,0.00052356,120]
[337158931,1725460013324,-3241.16,0.00052356,120]
[337158932,1725460013364,-3241.16,0.00052356,120]
[337158933,1725460013404,-3241.16,0.00052356,120]
[337158934,1725460013446,-3241.16,0.00052356,120]
[337158935,1725460013486,-3241.23015688,0.00052356,120]
[337158936,1725460013523,-757.24117349,0.00052395,60]
[337158937,1725460013560,-152.6375423,0.00052877,89]
[337158938,1725460013601,-900.0,0.00053009,60]
[337158939,1725460013640,-900.0,0.00053217,60]
[337158940,1725460013680,-900.0,0.00053223,60]
[337158941,1725460013718,-376.266847,0.00053425,120]
[337158942,1725460013756,-1000.0,0.00053753,60]
[337158943,1725460013797,-151.0,0.00053836,120]
[337158944,1725460013834,-503.10369043,0.00053842,60]
[337158945,1725460013872,-20274.83,0.000539,30]
[337158946,1725460013909,-504.15436048,0.0005391,60]
[337158947,1725460013945,-700.0,0.00054,120]
[337158948,1725460013984,-710.0,0.00054,120]
[337158949,1725460014024,-1060.48668105,0.00054,120]
[337158950,1725460014061,-198.16232114,0.00054,120]
[337158951,1725460014101,-300.0,0.00054,120]
[337158952,1725460014140,-1000.0,0.00054055,60]
[337158953,1725460014183,-900.0,0.00054134,60]
[337158954,1725460014221,-1320.81521604,0.00054138,60]
[337158955,1725460014295,-900.0,0.00054202,60]
[337158956,1725460014335,-500.252288,0.00054218,120]
[337158957,1725460014375,-1036.31,0.00054246,120]
[337158958,1725460014413,-1036.31,0.00054246,120]
[337158959,1725460014453,-1036.31,0.00054246,120]
[337158960,1725460014492,-1036.31,0.00054246,120]
[337158961,1725460014529,-1036.31,0.00054246,120]
[337158962,1725460014567,-1036.31,0.00054246,120]
[337158963,1725460014603,-1036.31,0.00054246,120]
[337158964,1725460014641,-1036.31,0.00054246,120]
[337158965,1725460014680,-1036.31,0.00054246,120]
[337158966,1725460014718,-1036.31,0.00054246,120]
[337158967,1725460014755,-1036.31,0.00054246,120]
[337158968,1725460014795,-1036.31,0.00054246,120]
[337158969,1725460014833,-1036.31,0.00054246,120]
[337158970,1725460014873,-1036.31,0.00054246,120]
[337158971,1725460014912,-1036.31,0.00054246,120]
[337158972,1725460014954,-1036.31,0.00054246,120]
[337158973,1725460014994,-1036.31,0.00054246,120]
[337158974,1725460015036,-1036.31,0.00054246,120]
[337158975,1725460015075,-1036.31,0.00054246,120]
[337158976,1725460015112,-1036.31,0.00054246,120]
[337158977,1725460015151,-1036.31,0.00054246,120]
[337158978,1725460015191,-1036.31,0.00054246,120]
[337158979,1725460015229,-1036.31,0.00054246,120]
[337158980,1725460015267,-1036.35293201,0.00054246,120]
[337158981,1725460015305,-500.0,0.0005437,30]
[337158982,1725460015343,-1142.62789196,0.0005443,60]
[337158983,1725460015381,-1638.52943089,0.00054632,60]
[337158984,1725460015421,-151.0,0.00054658,120]
[337158985,1725460015469,-1299.89014657,0.00054747,79]
[337158986,1725460015510,-438.93860627,0.00054794,120]
[337158987,1725460015550,-189.32527159,0.00054794,120]
[337158988,1725460015588,-500.0,0.00054794,120]
[337158989,1725460015628,-500.0,0.00054794,120]
[337158990,1725460015669,-430.13880464,0.00054794,120]
[337158991,1725460015716,-500.0,0.00054794,120]
[337158992,1725460015756,-500.0,0.00054794,120]
[337158993,1725460015797,-500.0,0.00054794,120]
[337158994,1725460015836,-500.0,0.00054794,120]
[337158995,1725460015874,-500.0,0.00054794,120]
[337158996,1725460015912,-500.0,0.00054794,120]
[337158997,1725460015957,-500.0,0.00054794,120]
[337158998,1725460015994,-500.0,0.00054794,120]
[337158999,1725460016031,-500.0,0.00054794,120]
[337159000,1725460016067,-500.0,0.00054794,120]
[337159001,1725460016103,-500.0,0.00054794,120]
[337159002,1725460016139,-500.0,0.00054794,120]
[337159003,1725460016175,-500.0,0.00054794,120]
[337159004,1725460016215,-500.0,0.00054794,120]
[337159005,1725460016252,-401.19897765,0.00054794,120]
[337159006,1725460016289,-500.0,0.00054794,120]
[337159007,1725460016326,-500.0,0.00054794,120]
[337159008,1725460016364,-500.0,0.00054794,120]
[337159009,1725460016401,-500.0,0.00054794,120]
[337159010,1725460016439,-500.0,0.00054794,120]
[337159011,1725460016477,-500.0,0.00054794,120]
[337159012,1725460016514,-500.0,0.00054794,120]
[337159013,1725460016552,-500.0,0.00054794,120]
[337159014,1725460016592,-500.0,0.00054794,120]
[337159015,1725460016629,-620.16302668,0.00054794,120]
[337159016,1725460016668,-500.0,0.00054794,120]
[337159017,1725460016708,-500.0,0.00054794,120]
[337159018,1725460016747,-500.0,0.00054794,120]
[337159019,1725460016792,-500.0,0.00054794,120]
[337159020,1725460016833,-500.0,0.00054794,120]
[337159021,1725460016875,-500.0,0.00054794,120]
[337159022,1725460016915,-500.0,0.00054794,120]
[337159023,1725460016956,-501.0093536,0.00054794,120]
[337159024,1725460016996,-2613.18,0.00054794,120]
[337159025,1725460017038,-2613.18,0.00054794,120]
[337159026,1725460017076,-2613.18,0.00054794,120]
[337159027,1725460017117,-2613.18,0.00054794,120]
[337159028,1725460017154,-2613.18,0.00054794,120]
[337159029,1725460017189,-2613.18,0.00054794,120]
[337159030,1725460017225,-2613.18,0.00054794,120]
[337159031,1725460017263,-2613.18,0.00054794,120]
[337159032,1725460017301,-2613.18,0.00054794,120]
[337159033,1725460017341,-2613.18,0.00054794,120]
[337159034,1725460017380,-2613.18,0.00054794,120]
[337159035,1725460017419,-2613.18,0.00054794,120]
[337159036,1725460017460,-2613.18,0.00054794,120]
[337159037,1725460017499,-2613.18,0.00054794,120]
[337159038,1725460017536,-2613.18,0.00054794,120]
[337159039,1725460017575,-2613.18,0.00054794,120]
[337159040,1725460017615,-2613.18,0.00054794,120]
[337159041,1725460017655,-2613.18,0.00054794,120]
[337159042,1725460017694,-2613.18,0.00054794,120]
[337159043,1725460017732,-2613.18,0.00054794,120]
[337159044,1725460017769,-2613.18,0.00054794,120]
[337159045,1725460017814,-2613.18,0.00054794,120]
[337159046,1725460017855,-2613.18,0.00054794,120]
[337159047,1725460017891,-2613.36038594,0.00054794,120]
[337159048,1725460017930,-500.0,0.00054794,120]
[337159049,1725460017968,-500.0,0.00054794,120]
[337159050,1725460018005,-500.0,0.00054794,120]
[337159051,1725460018044,-500.0,0.00054794,120]
[337159052,1725460018082,-500.0,0.00054794,120]
[337159053,1725460018121,-500.0,0.00054794,120]
[337159054,1725460018159,-500.0,0.00054794,120]
[337159055,1725460018198,-612.69427823,0.00054794,120]
[337159056,1725460018287,153.0,0.0003726,120]
[337159057,1725460018338,153.0,0.0003726,120]
[337159058,1725460018490,153.0,0.0003726,120]
[337159059,1725460018791,464.43,0.000273,14]
[337159060,1725460018835,464.43,0.000314,14]
[337159061,1725460019014,464.43,0.000349,14]
[337159062,1725460020263,464.43,0.000387,14]
[337159064,1725460020609,464.43,0.00047,30]
[337159065,1725460020962,464.43,0.000518,30]
[337159066,1725460027578,6082.44,0.000274,14]
[337159067,1725460027859,300.0,0.000518,30]
[337159068,1725460027932,6082.44,0.000315,14]
[337159069,1725460029226,6082.44,0.000349,14]
[337159070,1725460029552,6082.44,0.000386,14]
[337159071,1725460030579,6082.44,0.00046,30]
[337159072,1725460031078,6082.44,0.000515,30]
[337159073,1725460031997,3200.0,0.000515,30]
[337159082,1725460206424,1431.34,0.00027,120]
[337159160,1725460238222,-314.47399217,0.00023,2]
[337159170,1725460240472,-905.58524428,0.00023,2]
[337159171,1725460240483,-831.127807,0.00024658,2]
[337159172,1725460240493,-2452.7748909,0.00024902,2]
[337159173,1725460240504,-178.698572,0.00024956,2]
[337159174,1725460240514,-790.29007419,0.0002499,2]
[337159175,1725460240523,-300.0,0.00024999,2]
[337159176,1725460240533,-19499.65194415,0.00025,2]
[337159177,1725460240544,-10364.0,0.00025,2]
[337159178,1725460240554,-1541.3871335,0.0002509,2]
[337159179,1725460240564,-24900.0,0.00025539,2]
[337159180,1725460240574,-443.33832717,0.00027124,2]
[337159182,1725460240585,-1000.0,0.00027133,2]
[337159183,1725460240599,-9752.41,0.00027135,3]
[337159184,1725460240608,-198.83547574,0.00027136,2]
[337159185,1725460240618,-7990.0,0.00027136,3]
[337159186,1725460240627,-11702.89,0.00027136,3]
[337159187,1725460240637,-527.90728949,0.00027145,2]
[337159188,1725460240647,-500.0,0.00027145,2]
[337159189,1725460240657,-500.0,0.00027145,2]
[337159190,1725460240671,-500.0,0.00027145,2]
[337159191,1725460240681,-500.0,0.00027145,2]
[337159192,1725460240691,-500.0,0.00027145,2]
[337159193,1725460240700,-500.0,0.00027145,2]
[337159194,1725460240710,-500.0,0.00027145,2]
[337159195,1725460240720,-500.0,0.00027145,2]
[337159196,1725460240730,-500.0,0.00027145,2]
[337159197,1725460240740,-500.0,0.00027145,2]
[337159198,1725460240750,-500.0,0.00027145,2]
[337159199,1725460240760,-500.0,0.00027145,2]
[337159200,1725460240769,-500.0,0.00027145,2]
[337159201,1725460240779,-500.0,0.00027145,2]
[337159202,1725460240789,-500.0,0.00027145,2]
[337159203,1725460240799,-500.0,0.00027145,2]
[337159204,1725460240809,-500.0,0.00027145,2]
[337159205,1725460240818,-500.0,0.00027145,2]
[337159206,1725460240828,-500.0,0.00027145,2]
[337159207,1725460240841,-500.0,0.00027145,2]
[337159208,1725460240855,-500.0,0.00027145,2]
[337159209,1725460240865,-500.0,0.00027145,2]
[337159210,1725460240876,-500.0,0.00027145,2]
[337159211,1725460240887,-500.0,0.00027145,2]
[337159212,1725460240898,-500.0,0.00027145,2]
[337159213,1725460240908,-500.0,0.00027145,2]
[337159214,1725460240918,-500.0,0.00027145,2]
[337159215,1725460240930,-500.0,0.00027145,2]
[337159216,1725460240940,-500.0,0.00027145,2]
[337159217,1725460240950,-500.0,0.00027145,2]
[337159218,1725460240960,-500.0,0.00027145,2]
[337159219,1725460240970,-500.0,0.00027145,2]
[337159220,1725460240980,-500.0,0.00027145,2]
[337159221,1725460240990,-500.0,0.00027145,2]
[337159222,1725460241000,-500.0,0.00027145,2]
[337159223,1725460241010,-500.0,0.00027145,2]
[337159224,1725460241021,-500.0,0.00027145,2]
[337159225,1725460241031,-500.0,0.00027145,2]
[337159226,1725460241040,-500.0,0.00027145,2]
[337159227,1725460241050,-500.0,0.00027145,2]
[337159228,1725460241060,-500.0,0.00027145,2]
[337159229,1725460241070,-500.0,0.00027145,2]
[337159230,1725460241081,-500.0,0.00027145,2]
[337159231,1725460241093,-500.0,0.00027145,2]
[337159232,1725460241103,-55555.0,0.00027146,3]
[337159233,1725460241112,-185.63708389,0.0002721,2]
[337159234,1725460241122,-500.0,0.0002721,2]
[337159235,1725460241136,-500.0,0.0002721,2]
[337159236,1725460241146,-349.3296185,0.0002721,2]
[337159237,1725460241156,-550.9,0.0002721,2]
[337159238,1725460241165,-500.0,0.0002721,2]
[337159239,1725460241175,-228.68016554,0.0002721,2]
[337159240,1725460241184,-500.0,0.0002721,2]
[337159241,1725460241195,-500.0,0.0002721,2]
[337159242,1725460241205,-172.41187961,0.0002721,2]
[337159243,1725460241215,-10588.42606551,0.00027211,15]
[337159244,1725460241226,-104422.677776,0.00027211,3]
[337159245,1725460241235,-256523.47219563,0.00027211,2]
[337159260,1725460243336,-6.82320732,0.00027211,2]
[337159261,1725460243349,-19260.01224422,0.00027211,2]
[337159314,1725461288801,1496.41,0.0002,2]
[337159350,1725461438444,-418.96386624,0.00024558,2]
[337159351,1725461438455,-789.571417,0.00024658,2]
[337159352,1725461438467,-300.0,0.000252,2]
[337159353,1725461438481,-24900.0,0.00025201,2]
[337159354,1725461438492,-380.0,0.00025326,2]
[337159355,1725461438503,-175.688731,0.00025619,2]
[337159356,1725461438512,-175.688731,0.0002581,2]
[337159357,1725461438522,-175.688731,0.00026,2]
[337159358,1725461438531,-175.688731,0.00026191,2]
[337159359,1725461438541,-175.688731,0.00026382,2]
[337159360,1725461438551,-175.688731,0.00026573,2]
[337159361,1725461438562,-175.688731,0.00026763,2]
[337159362,1725461438572,-2223.00164634,0.0002682,2]
[337159363,1725461438581,-1255.61437454,0.00026854,2]
[337159364,1725461438592,-2585.2375981,0.00026919,2]
[337159365,1725461438602,-175.688731,0.00026954,2]
[337159366,1725461438613,-6369.68021055,0.00026988,2]
[337159367,1725461438626,-478.09937594,0.00026991,2]
[337159368,1725461438636,-1572.85919169,0.00026991,2]
[337159369,1725461438647,-478.0993759,0.00026996,2]
[337159370,1725461438658,-1000.0,0.00027001,2]
[337159371,1725461438669,-478.0993759,0.00027002,2]
[337159372,1725461438678,-478.0993759,0.00027007,2]
[337159373,1725461438688,-478.0993759,0.00027012,2]
[337159374,1725461438697,-14418.82,0.00027071,3]
[337159375,1725461438707,-12015.68,0.00027071,3]
[337159376,1725461438716,-500.0,0.00027073,2]
[337159377,1725461438728,-500.0,0.00027073,2]
[337159378,1725461438738,-319.411054,0.00027073,2]
[337159379,1725461438747,-500.0,0.00027073,2]
[337159380,1725461438757,-156.8571277,0.00027073,2]
[337159381,1725461438767,-500.0,0.00027073,2]
[337159382,1725461438778,-172.440113,0.0002708,2]
[337159383,1725461438787,-527.90728949,0.0002708,2]
[337159385,1725461438797,-500.0,0.0002708,2]
[337159386,1725461438806,-500.0,0.0002708,2]
[337159387,1725461438815,-500.0,0.0002708,2]
[337159389,1725461438824,-500.0,0.0002708,2]
[337159391,1725461438834,-500.0,0.0002708,2]
[337159393,1725461438843,-500.0,0.0002708,2]
[337159395,1725461438853,-500.0,0.0002708,2]
[337159397,1725461438863,-500.0,0.0002708,2]
[337159399,1725461438873,-500.0,0.0002708,2]
[337159401,1725461438882,-500.0,0.0002708,2]
[337159402,1725461438893,-500.0,0.0002708,2]
[337159403,1725461438906,-500.0,0.0002708,2]
[337159404,1725461438916,-500.0,0.0002708,2]
[337159405,1725461438927,-500.0,0.0002708,2]
[337159406,1725461438937,-500.0,0.0002708,2]
[337159408,1725461438949,-500.0,0.0002708,2]
[337159410,1725461438960,-500.0,0.0002708,2]
[337159412,1725461438971,-500.0,0.0002708,2]
[337159413,1725461438982,-500.0,0.0002708,2]
[337159414,1725461438991,-500.0,0.0002708,2]
[337159415,1725461439001,-500.0,0.0002708,2]
[337159416,1725461439010,-500.0,0.0002708,2]
[337159418,1725461439019,-500.0,0.0002708,2]
[337159420,1725461439030,-500.0,0.0002708,2]
[337159422,1725461439039,-500.0,0.0002708,2]
[337159424,1725461439048,-500.0,0.0002708,2]
[337159425,1725461439057,-500.0,0.0002708,2]
[337159426,1725461439068,-500.0,0.0002708,2]
[337159427,1725461439077,-500.0,0.0002708,2]